Cogmind - Beta 16 @@@ ROGUE MODE // 2026.02.08 @ 22:48:46 Player: Gamma Result: Destroyed by LL-ZJK(R) with Subdweller Laser Performance ------------- Evolutions (0) 0 Regions Visited (2) 400 Robots Destroyed (28) 140 Value Destroyed (800) 800 Prototype IDs (0) 0 Alien Tech Used (0) 0 Bonus (0) 0 TOTAL SCORE: 1340 Bonus ------- None Cogmind --------- Core Integrity 0/250 Matter 290/300 Energy 149/200 System Corruption 0% Temperature Cool (30) Movement Rolling (120) Ox1 Location -10/Subcaves Parts ------- > --- POWER (1) -------- Subdweller Power Source > --- PROPULSION (2) --- Subdweller Monowheel Subdweller Monowheel > --- UTILITY (2) ------ High-capacity Storage Unit Targeting Computer > --- WEAPON (2) ------- Beam Cannon Beam Cannon > --- INVENTORY (20) --- Light Treads Myomer Leg Subdweller Monowheel Subdweller Monowheel Heat Sink Improved Heat Sink Improved Heat Sink Disposable Heat Sink Signal Interpreter Scrap Shield Small Laser Subdweller Beam Cannon Subdweller Beam Cannon Light Assault Rifle Battle Rifle Grenade Launcher Multitool Peak State ------------ > --- POWER ------------ Subdweller Power Source > --- PROPULSION ------- Subdweller Monowheel Subdweller Monowheel > --- UTILITY ---------- High-capacity Storage Unit Targeting Computer > --- WEAPON ----------- Beam Cannon Beam Cannon > --- INVENTORY -------- Light Treads Myomer Leg Subdweller Monowheel Subdweller Monowheel Heat Sink Improved Heat Sink Improved Heat Sink Disposable Heat Sink Signal Interpreter Scrap Shield Small Laser Subdweller Beam Cannon Subdweller Beam Cannon Light Assault Rifle Battle Rifle Grenade Launcher Multitool [Rating: 13] Favorites ----------- Power Ion Engine Engine Ion Engine Propulsion Subdweller Monowheel Treads Light Treads Leg Aluminum Leg Wheel Subdweller Monowheel Utility Targeting Computer Storage High-capacity Storage Unit Processor Targeting Computer Weapon Beam Cannon Energy Gun Small Laser Energy Cannon Beam Cannon Ballistic Gun Light Assault Rifle Launcher Grenade Launcher Build | -11 -10 -10 ------- Run | Yrd Mat Sub Slots Evolved . | . . . Power . | . . . Propulsion . | . . . Utility . | . . . Weapon . | . . . Parts Attached 21 | 6 7 8 Power 4 | 1 2 1 Engine 4 | 1 2 1 Core . | . . . Reactor . | . . . Propulsion 7 | 2 . 5 Treads 1 | . . 1 Leg 3 | 2 . 1 Wheel 3 | . . 3 Hover . | . . . Flight . | . . . Utility 3 | 1 2 . Device . | . . . Storage 2 | 1 1 . Processor 1 | . 1 . Hackware . | . . . Protection . | . . . Artifact . | . . . Weapon 7 | 2 3 2 Energy Gun 1 | 1 . . Energy Cannon 4 | . 2 2 Ballistic Gun 1 | 1 . . Ballistic Cannon . | . . . Launcher 1 | . 1 . Special Weapon . | . . . Impact Weapon . | . . . Slashing Weapon . | . . . Piercing Weapon . | . . . Special Melee Weapon . | . . . Unidentified Prototypes . | . . . Parts Lost 8 | . . 8 Power 2 | . . 2 Propulsion 4 | . . 4 Utility . | . . . Weapon 2 | . . 2 Highest Loss Streak 4 | . . 4 To Critical Strikes 1 | . . 1 Average Backups 12 | 3 7 14 Power . | . 1 . Propulsion 3 | 1 2 3 Utility 3 | . 1 4 Weapon 4 | 1 3 5 Tool/Special . | . . . Unused Backups 21 | . 8 13 Power 1 | . 1 . Propulsion 7 | . 4 3 Utility 8 | . 2 6 Weapon 4 | . 1 3 Tool/Special 1 | . . 1 Average Slot Usage (%) 98 | . 97 99 Engine 13 | . 14 13 Leg 11 | . 28 2 Wheel 15 | . . 24 Storage 14 | . 14 14 Processor 13 | . 11 14 Energy Gun 2 | . 8 . Energy Cannon 21 | . 10 27 Ballistic Gun 2 | . 8 . Peak Build Rating 13 | 6 7 13 Average Rating 9 | 4 6 11 On Entrance 4 | . 6 7 Avg Prop Armor Cover (%) . | . . . Naked Turns . | . . . Heaviest Build 51 | 10 51 51 Greatest Support 40 | 20 20 40 Greatest Overweight (x) 2 | . 2 2 Average Overweight (x) . | . . 1 Largest Inventory Capacity 20 | 8 20 20 Average Capacity 17 | 5 14 20 Most Carried 19 | 5 9 19 Average Carried 12 | 3 7 15 Final Capacity 20 | 8 20 20 Final Carried 18 | 4 9 18 Class Distribution -------------------- 100% | Mutant Dominant Class ---------------- Mutant | -10/Materials Mutant | -10/Subcaves Resources | -11 -10 -10 ----------- Run | Yrd Mat Sub Matter Collected 713 | 187 333 193 Remotely . | . . . Salvage Created 1043 | . 532 511 Parts 57 | . 32 25 Haulers Intercepted 2 | . 2 . Recyclers Shooed 2 | 1 1 . Parts Field Recycled . | . . . Retrieved Matter . | . . . Parts Self-Destructed 5 | . . 5 Prevented . | . . . Parts Restored . | . . . Kills | -11 -10 -10 ------- Run | Yrd Mat Sub Combat Hostiles Destroyed 22 | . 9 13 Guns 6 | . 6 . Cannons 11 | . 1 10 AOE 5 | . 2 3 Classes Destroyed 7 | . 6 1 Worker 1 | . 1 . Hauler 2 | . 2 . Recycler 2 | . 2 . Operator 1 | . 1 . Swarmer 3 | . 3 . Grunt 6 | . 6 . Subdweller 13 | . . 13 Best Kill Streak 9 | . 9 4 Combat Bots Only 6 | . 6 4 Max Kills in Single Turn 3 | . 3 1 Gunslinging . | . . . Exploded 2 | . 2 1 Melee . | . . . Uniques/NPCs Destroyed . | . . . Combat | -11 -10 -10 -------- Run | Yrd Mat Sub Hostile Shots Fired 91 | . 25 66 Missed 29 | . 7 22 Hits 62 | . 18 44 Projectile 62 | . 18 44 AOE 6 | . . 6 Critical Strikes 2 | . . 2 Damage Taken 1364 | . 211 1153 Core 260 | . 47 213 Absorbed by Shields . | . . . Core Remaining (%) 100 | 100 . . Volleys Fired 102 | 1 47 54 Largest 2 | 2 2 2 Hottest 120 | 60 120 120 Shots Fired 194 | 2 93 99 Gun 68 | 2 66 . Cannon 116 | . 26 90 Launcher 10 | . 1 9 Special . | . . . Kinetic 34 | 1 33 . Thermal 150 | 1 59 90 Explosive 10 | . 1 9 Electromagnetic . | . . . Robot Hit Streak 25 | 2 25 25 Robot Miss Streak 6 | . 6 2 Penetration Max . | . . . Secondary Targets 1 | . 1 . Max Gunslinging Chain 1 | . 1 . Shots Hit Robots 145 | 2 66 77 Core Hits 61 | 1 29 31 Critical Kills . | . . . Critical Parts Destroyed 1 | . 1 . Critical Strikes 1 | . 1 . Destroy 1 | . 1 . Melee Attacks . | . . . Impact . | . . . Slashing . | . . . Piercing . | . . . Sneak Attacks . | . . . Combat Hostiles . | . . . Follow-up Attacks . | . . . Damage Inflicted 3214 | 19 860 2335 Guns 535 | 19 516 . Cannons 1158 | . 213 945 Explosions 1521 | . 131 1390 Melee . | . . . Ramming . | . . . Kinetic 206 | 8 198 . Thermal 1487 | 11 531 945 Explosive 1521 | . 131 1390 Electromagnetic . | . . . Impact . | . . . Slashing . | . . . Piercing . | . . . Highest Corruption . | . . . Average Corruption . | . . . Corruption Purged . | . . . Corruption Blocked . | . . . Overload Shots . | . . . Overflow Damage 36 | . 8 28 Projectiles 8 | . 8 . Explosions 28 | . . 28 Melee . | . . . Knockbacks . | . . . Impact . | . . . Kinetic . | . . . Secondary . | . . . Self-Inflicted Damage 31 | . . 31 Shots 1 | . . 1 Rammed . | . . . Targets Rammed . | . . . Kicked . | . . . Crushed . | . . . Highest Temperature 300 | 20 300 36 Average Temperature 44 | 15 58 14 Received Heat Transfer 333 | . 108 225 Siege Activations . | . . . Martial Activations . | . . . Shielding Activations . | . . . Robots Disrupted . | . . . Combat Hostiles . | . . . Robots Corrupted . | . . . Combat Hostiles . | . . . Parts Fried . | . . . Impact Corruptions . | . . . Robots Melted . | . . . Combat Hostiles . | . . . Parts Melted 2 | . 1 1 Heat Transferred 3167 | 25 1144 1998 Parts Sabotaged . | . . . Parts Stolen . | . . . Parts Stripped . | . . . Power Chain Reactions . | . . . Alert | -11 -10 -10 ------- Run | Yrd Mat Sub Maximum Alert Level . | . . . Low Security (%) 100 | 100 100 . Level 1 . | . . . Level 2 . | . . . Level 3 . | . . . Level 4 . | . . . Level 5 . | . . . High Security . | . . . Max Security . | . . . Peak Influence 166 | . 166 . Initial . | . . . Average 61 | . 66 . Influence Increases 300 | . 300 . Destroy 0b10 Robot/C 180 | . 180 . Destroy 0b10 Robot/NC 30 | . 30 . Destroy Leader 54 | . 54 . Successful Hack 20 | . 20 . Destroy Structure 1 | . 1 . Lose Combat Pursuer 15 | . 15 . Influence Decreases 300 | . 284 16 Entered New Map 8 | . . 8 Time Decay 292 | . 284 8 Squads Dispatched 3 | . 3 . Investigation . | . . . Extermination . | . . . Reinforcement 3 | . 3 . Assault . | . . . Garrison . | . . . Intercept . | . . . Searches Triggered . | . . . Construction Impeded . | . . . Haulers Reinforced . | . . . Active Scanning Responses . | . . . Cargo Convoy Interrupts . | . . . Stealth | -11 -10 -10 --------- Run | Yrd Mat Sub Distress Signals 4 | . 4 . Communications Jammed . | . . . Distress Signals . | . . . Times Spotted 45 | . 21 24 Peak Tracking Total 8 | . 8 7 Tactical Retreats 1 | . 1 . Traps | -11 -10 -10 ------- Run | Yrd Mat Sub Traps Triggered . | . . . Indirectly . | . . . Trap Hack Attempts . | . . . Triggered . | . . . Disarmed . | . . . Reprogrammed . | . . . Reused . | . . . Traps Extracted . | . . . Installed . | . . . Triggered . | . . . Machines | -11 -10 -10 ---------- Run | Yrd Mat Sub Machines Disabled . | . . . Max in Single Turn . | . . . Machines Repaired . | . . . Machines Dismantled . | . . . Machines Sabotaged . | . . . Overloaded Fab Kills . | . . . Hacking | -11 -10 -10 --------- Run | Yrd Mat Sub Machines Accessed 2 | . 2 . Terminals 2 | . 2 . Fabricators . | . . . Repair Stations . | . . . Recycling Units . | . . . Scanalyzers . | . . . Garrison Access . | . . . Total Hacks 5 | . 5 . Successful 4 | . 4 . Failed 1 | . 1 . Catastrophic . | . . . Database Lockouts . | . . . Manual 6 | . 6 . Terminals 5 | . 5 . Fabricators . | . . . Repair Stations . | . . . Recycling Units . | . . . Scanalyzers . | . . . Garrison Access . | . . . Terminal Hacks 2 | . 2 . Robot Analysis 2 | . 2 . Fabricator Hacks . | . . . Repair Station Hacks . | . . . Recycling Unit Hacks . | . . . Scanalyzer . | . . . Garrison Access Hacks . | . . . Unauthorized Hacks 2 | . 2 . Terminals 2 | . 2 . Track 1 | . 1 . Botnet 1 | . 1 . Fabricators . | . . . Repair Stations . | . . . Recycling Units . | . . . Scanalyzers . | . . . Garrison Access . | . . . Data Cores Recovered 1 | . 1 . Used . | . . . Hacking Detections 2 | . 2 . Full Trace Events . | . . . Feedback Events . | . . . Feedback Blocked . | . . . Robot Schematics Acquired . | . . . Robots Built . | . . . Authchips . | . . . Time . | . . . Total Robot Build Rating . | . . . Part Schematics Acquired . | . . . Parts Built . | . . . Authchips . | . . . Time . | . . . Total Part Build Rating . | . . . Part Studies Acquired . | . . . Parts Repaired . | . . . Time . | . . . Parts Recycled . | . . . Recycled Matter . | . . . Retrieved Matter . | . . . Retrieved Components . | . . . Parts Scanalyzed . | . . . Part Schematics Acquired . | . . . Parts Damaged . | . . . Bothacking | -11 -10 -10 ------------ Run | Yrd Mat Sub Used RIF Installer . | . . . Robots Hacked . | . . . Non-combat . | . . . Combat . | . . . Robot Hacks Applied . | . . . Relay Couplers Released . | . . . Fabnet Peak Effective % . | . . . Robots Rewired . | . . . Allies Hacked . | . . . Hacks Repelled . | . . . Allies | -11 -10 -10 -------- Run | Yrd Mat Sub Total Allies . | . . . Largest Group . | . . . Highest-Rated Group . | . . . Highest-Rated Ally . | . . . Total Orders . | . . . Ally Attacks . | . . . Total Damage . | . . . Kills . | . . . Allies Corrupted . | . . . Allies Melted . | . . . Intel | -11 -10 -10 ------- Run | Yrd Mat Sub Active Infowar (turns) . | . . . Robot Analysis Total 2 | . 2 . Derelict Logs Recovered 2 | . . 2 Drone Launches . | . . . Drone Recoveries . | . . . Exploration | -11 -10 -10 ------------- Run | Yrd Mat Sub Turns Passed 2260 | 65 761 1434 Spaces Moved 1322 | 42 320 960 Core 8 | 8 . . Treads 6 | . . 6 Legs 405 | 34 320 51 Wheels 903 | . . 903 Hover . | . . . Flight . | . . . Fastest Speed 50 | 50 120 120 Average Speed 138 | 106 172 128 Slowest Speed 320 | 120 260 320 Overloaded Moves . | . . . Propulsion Burnouts . | . . . Robots Hopped . | . . . Potential Cave-ins . | . . . Cave-ins Triggered . | . . . Exploration Rate (%) 39 | 4 59 55 Regions Visited 2 Branch Regions 1 Pre-discovered Areas 1 | . . 1 Known Exits Taken . | . . . Unknown Exits Taken 2 | 1 1 . Scrap Searched 9 | . . 9 Spaces Dug . | . . . Terrain Destroyed 23 | . 1 22 Melee . | . . . Projectile . | . . . AOE 23 | . 1 22 Terrain Rammed . | . . . Walls Destroyed . | . . . Machines Disabled . | . . . Actions | -11 -10 -10 --------- Run | Yrd Mat Sub Total 1566 | 60 447 1059 Wait 65 | . 50 15 Move 1320 | 41 319 960 Hop . | . . . Pick Up 39 | 10 13 16 Fast Attach 1 | 1 . . Attach 16 | 6 1 9 Detach 1 | . . 1 Swap 11 | . 7 4 Drop 11 | 1 10 . Fire 102 | 1 47 54 Melee . | . . . Ram . | . . . Kick . | . . . Crush . | . . . Escape Stasis . | . . . Rewire . | . . . Trap . | . . . Miscellaneous . | . . . Route ------- -11/Scrapyard -10/Materials (discovered 3 exits: [*Min x2] / [*Sub]) -10/Subcaves (discovered 1 exit: [*Mat]) History --------- Turn | Location | Event 14 | -11/Scrapyard | Discovered new exit (range 15) 66 | -11/Scrapyard | Entered Materials 330 | -10/Materials | Build established: Mutant 368 | -10/Materials | Discovered new exit (range 13) 693 | -10/Materials | Discovered new exit (range 13) 796 | -10/Materials | Discovered new exit (range 10) 827 | -10/Materials | Entered Subcaves 839 | -10/Subcaves | Learned Materials terminal intel 944 | -10/Subcaves | Shifting Twisted Machinery released Sub. Monowheel 962 | -10/Subcaves | Ambushed by swarm of Subdwellers 962 | -10/Subcaves | Ambushed by Subdwellers from Twisted Machinery 976 | -10/Subcaves | Ambushed by Subdweller buried in earth 1010 | -10/Subcaves | Lost 4 parts (1p3n) 1054 | -10/Subcaves | Discovered new exit (range 7) 1618 | -10/Subcaves | Disturbed a concealed Subdweller 1680 | -10/Subcaves | Core integrity fell below 50% 1698 | -10/Subcaves | Ambushed by Subdweller buried in earth 1747 | -10/Subcaves | Shifting Twisted Machinery released Sub. Optics 1771 | -10/Subcaves | Core integrity fell below 20% 1816 | -10/Subcaves | Shifting Twisted Machinery released Battle Rifle 1859 | -10/Subcaves | Learned location of Zion (-6) 1859 | -10/Subcaves | Met a Zionite searching for "candidates" 1886 | -10/Subcaves | Learned Materials terminal intel 1887 | -10/Subcaves | Shifting Twisted Machinery released Sub. Power Source 1956 | -10/Subcaves | Shifting Twisted Machinery released Ripper 2261 | -10/Subcaves | Destroyed by LL-ZJK(R) with Subdweller Laser Last Messages --------------- 01826_ Acquired Battle Rifle. 01859_ 73-TU9(z): "Hey you! It's really dangerous down here, I feel that you could die at any moment. For your health and safety might I suggest a trip to Zion?" World map updated: -6/Zion. 01865_ CT-DTJ(R) destroyed. 01868_ YG-KLB(R) destroyed. 01873_ The unstable cave ceiling collapses. 01873_ Scrap Shield Fragment crushed. 01886_ Acquired derelict log, extracted data. Data stored: Materials terminal intel. Sub. Power Source falls loose from the Twisted Machinery. Ripper falls loose from the Twisted Machinery. 01959_ SR-IKX(u) tweaks Twisted Machinery. 02025_ Subatomizers dissect the Sub. Laser. 02119_ Acquired 40 matter. 02244_ P5-UU4(R) destroyed. 02249_ Ion Engine destroyed. Map ----- +----------------------------------------------------+ | ??????????????# ????????#### ###????????????? | | ??????????????# ??????## ###????????????? | | ???????????????# ????## ##???????????? | | ???????????????# ??## #???????????? | | ???????????????# ### ##### ##???????????? | | ????????????????# ##???# #????????????? | | ????????????????# ###### #????????????? | | ????????????????## # ##????????????? | | ?????????????????# ### # ### #?????????????? | | ???????????????? ???## ### ### #?????????????? | | ?????????????????????## # ##?###?????????????? | | ?????????????? ?????# ## #??????????????????? | | ?????????????# ##??# # # ##?????????????????? | | ????????????? # ##????????????????? | | ????????????% ## #????????????????? | | ???????????#% # # #### # ##????????????????? | | ???????????# #######??### #????????????????? | | ????????????# ?? ##????# #????????????????? | | ????????????# ?? ?????## ##????????????????? | | ????????????## ? ??????## #?????????????????? | | ?????????????## ? ??????## ##????????????????? | | ?????????????## # ?????## ####?????????????? | | ?????????????? # ?????## ##????????????? | | ??????????????# ?????## #????????????? | | ??????????????# #???### #????????????? | | ######???????## #??## @ #????????????? | | # # ##??????# #?## ### #????????????? | | ## #??????# ###R ##?## #????????????? | | ## #??????## %= ###?# %#????????????? | | #???????# #?## ##????????????? | | ##??????# #??### #?????????????? | | ##?????# ###### #????###?????????????? | | ##????## ##?#####????????????????????? | | ##????### ## # ###???????????????????? | | ###???## #???????????????????? | | ## ##### # #???????????????????? | | #??# # # # # # ##???????????????????? | | #### ####? #????????????????????? | | ## ## ##??????????????????????????? | | #### #???????????????????????????? | | ! ##### #???????????????????????????? | | ## #???????????????????????????? | | ##???????????????????????????? | | & ##???????????????????????????? | | ## ##??????????????????????????? | | ## #??????????????????????????? | | ### ## ##??????????????????????????? | | #?# ## ##???????????????????????????? | | #?# ## ##???????????????????????????? | | #?# ### #???????????????????????????? | +----------------------------------------------------+ Best States ------------- Heat Dissipation 25 Energy Generation 15 Energy Capacity 250 Matter Stores 300 Matter Capacity 300 Sight Range 16 Terrain Scan Density 10 Evasion (%) 55 Targeting Accuracy 5 Recoil Reduction 1 Item Schematics ----------------- None Robot Schematics ------------------ None Fabricated ------------ Nothing Repaired ---------- Nothing Studied --------- None Alien Tech Used ----------------- None Achievements -------------- DATA ERROR: Steam Global Achievement% Do Not Disturb I Have A Map? Organ Harvest There's More Where That Came From Challenges ------------ None Game ------ Seed SurveybotTowerField Manual? 0 Play Time 00:42:11 Cumulative 50.6 hours Start 2026.02.08 @ 22:00:01 End 2026.02.08 @ 22:48:46 Sessions 1 Manual Loads 0 Difficulty Rogue Special Mode None Game No. 35 Rogue 35 Adventurer 0 Explorer 0 Win Type - Total 1 Types 1/0/0/0/0/0/0/0/0/0 Lore% 20 Gallery% 34 Achievement% 19 Wizard Run 0 Options --------- Layout 1 ASCII 1 Keyboard 0 Movement Mouse Keybinds 0 Fullscreen 1 Font 32/SmallcapsGlow Map View 50x35 Zoom Use 0% Tactical HUD 1 Map Filters NONE Filters NONE Steam 1 RUN: 700c0390-5af0-4534-acab-ca2f3e15d626